fUST/lending_fUST_20251031
["ID","MTS","AMOUNT","RATE_DAILY","PERIOD"]
[392709802,1761843032487,-239.22608776,0.000368,2]
[392709803,1761843032497,-3939.19,0.000369,14]
[392709804,1761843032507,-600.0,0.00037442,30]
[392709805,1761843032516,-300.0,0.00037626,30]
[392709806,1761843032525,-300.0,0.00037626,30]
[392709807,1761843032534,-300.0,0.00037626,30]
[392709809,1761843032544,-300.0,0.00037626,30]
[392709810,1761843032553,-300.0,0.00037626,30]
[392709812,1761843032563,-300.0,0.00037626,30]
[392709814,1761843032572,-300.0,0.00037626,30]
[392709815,1761843032582,-300.0,0.00037626,30]
[392709817,1761843032591,-300.0,0.00037626,30]
[392709818,1761843032600,-300.0,0.00037626,30]
[392709819,1761843032609,-300.0,0.00037626,30]
[392709820,1761843032618,-300.0,0.00037626,30]
[392709821,1761843032627,-300.0,0.00037626,30]
[392709822,1761843032637,-300.0,0.00037626,30]
[392709823,1761843032646,-300.0,0.00037626,30]
[392709824,1761843032655,-250.0,0.00037909,2]
[392709825,1761843032763,-264.577,0.00037909,2]
[392709826,1761843032779,-1323.58,0.0003815,3]
[392709827,1761843032788,-661.78,0.0003815,3]
[392709828,1761843032798,-330.9,0.0003815,3]
[392709829,1761843032807,-500.0,0.000382,5]
[392709830,1761843032817,-1297.0,0.000383,22]
[392709831,1761843032827,-187.7821169,0.00038619,4]
[392709832,1761843032836,-1000.0,0.00038748,5]
[392709833,1761843032845,-150.0,0.00039025,2]
[392709834,1761843032855,-283.67,0.00039038,7]
[392709835,1761843032864,-168.0,0.00039128,2]
[392709836,1761843032873,-234.979282,0.00039654,2]
[392709837,1761843032883,-200.0,0.0004,120]
[392709838,1761843032892,-720.0,0.00041186,90]
[392709839,1761843032902,-2052.9275487,0.00041611,2]
[392709840,1761843032911,-153.0,0.00042521,30]
[392709841,1761843032921,-153.0,0.00042521,30]
[392709842,1761843032931,-153.0,0.00042521,30]
[392709843,1761843032940,-150.0,0.00042572,2]
[392709844,1761843032949,-3939.19,0.000426,14]
[392709845,1761843032959,-458.0700527,0.00042666,2]
[392709846,1761843032968,-150.0,0.00042713,30]
[392709847,1761843032978,-369.89208551,0.00043002,2]
[392709848,1761843032990,-227.8143761,0.0004425,120]
[392709849,1761843032999,-157.8693168,0.00044681,2]
[392709850,1761843033009,-3295.37734981,0.00044919,94]
[392709851,1761843033018,-1000.0,0.00045,120]
[392709852,1761843033028,-151.25247834,0.00045151,120]
[392709853,1761843033037,-169.84201789,0.00045287,2]
[392709854,1761843033047,-864.0,0.00045305,90]
[392709855,1761843033057,-1334.343174,0.0004538,18]
[392709856,1761843033066,-1172.919825,0.0004538,18]
[392709857,1761843033076,-1000.0,0.000454,18]
[392709858,1761843033085,-1000.0,0.000454,18]
[392709859,1761843033094,-200.0,0.00045446,120]
[392709860,1761843033103,-151.25247834,0.00045726,120]
[392709861,1761843033113,-1000.0,0.00046,120]
[392709862,1761843033123,-150.0,0.0004612,2]
[392709863,1761843033133,-234.979282,0.00046143,2]
[392709864,1761843033144,-150.0,0.00046596,30]
[392709865,1761843033156,-1000.0,0.00047,120]
[392709866,1761843033166,-1000.0,0.00048,120]
[392709867,1761843033177,-18501.94,0.00048,120]
[392709868,1761843033186,-150.0,0.00049,120]
[392709869,1761843033196,-444.91988955,0.00049,120]
[392709870,1761843033206,-1000.0,0.00049,120]
[392709871,1761843033216,-152.745095,0.00049,120]
[392709872,1761843033226,-172.017186,0.00049,15]
[392709873,1761843033236,-192.698384,0.00049,15]
[392709874,1761843033245,-500.0,0.00049315,120]
[392709875,1761843033255,-500.0,0.00049315,120]
[392709876,1761843033268,-500.0,0.00049315,120]
[392709877,1761843033278,-500.0,0.00049315,120]
[392709878,1761843033287,-500.0,0.00049315,120]
[392709879,1761843033296,-500.0,0.00049315,120]
[392709880,1761843033307,-500.0,0.00049315,120]
[392709881,1761843033316,-500.0,0.00049315,120]
[392709882,1761843033326,-500.0,0.00049315,120]
[392709883,1761843033335,-500.065097,0.00049315,120]
[392709884,1761843033345,-168.68,0.00049668,2]
[392709885,1761843033354,-1000.0,0.00049836,90]
[392709886,1761843033364,-176.411727,0.00049973,120]
[392709887,1761843033373,-200.0,0.0005,120]
[392709888,1761843033383,-1286.71189715,0.0005,120]
[392709889,1761843033392,-551.36003201,0.0005,120]
[392709890,1761843033403,-1000.0,0.0005,120]
[392709891,1761843033412,-151.0,0.0005,120]
[392709892,1761843033421,-151.0,0.0005,120]
[392709893,1761843033431,-195.952542,0.0005,120]
[392709894,1761843033440,-195.952542,0.0005,120]
[392709895,1761843033449,-195.952542,0.0005,120]
[392709896,1761843033459,-195.952542,0.0005,120]
[392709897,1761843033469,-151.0,0.0005,120]
[392709898,1761843033479,-151.0,0.0005,120]
[392709899,1761843033488,-150.0,0.00050479,30]
[392709900,1761843033498,-1000.0,0.00051,120]
[392709901,1761843033507,-3000.0,0.00051,85]
[392709902,1761843033516,-3000.0,0.0005101,85]
[392709903,1761843033526,-3000.0,0.0005102,85]
[392709904,1761843033535,-2431.133958,0.0005102,120]
[392709905,1761843033544,-2431.133958,0.0005102,120]
[392709906,1761843033554,-2431.133958,0.0005102,120]
[392709907,1761843033563,-2431.133958,0.0005102,120]
[392709908,1761843033572,-151.0,0.0005102,120]
[392709909,1761843033582,-151.0,0.0005102,120]
[392709910,1761843033591,-151.0,0.0005102,120]
[392709911,1761843033601,-168.196355,0.0005102,120]
[392709912,1761843033610,-151.0,0.0005102,120]
[392709913,1761843033620,-154.71543,0.0005102,120]
[392709914,1761843033630,-151.0,0.0005102,120]
[392709915,1761843033639,-151.0,0.0005102,120]
[392709916,1761843033650,-3000.0,0.0005103,85]
[392709917,1761843033659,-3000.0,0.0005104,85]
[392709918,1761843033668,-3000.0,0.0005105,85]
[392709919,1761843033678,-3000.0,0.0005106,85]
[392709920,1761843033687,-3000.0,0.0005107,85]
[392709921,1761843033697,-3045.899336,0.0005108,85]
[392709922,1761843033706,-3939.19,0.000511,14]
[392709923,1761843033716,-151.0,0.000513,25]
[392709924,1761843033726,-500.0,0.00051729,10]
[392709925,1761843033736,-500.0,0.00051729,10]
[392709926,1761843033747,-196.37198462,0.00051729,10]
[392709927,1761843033759,-7856.0,0.00052,120]
[392709928,1761843033769,-1000.0,0.00052,120]
[392709929,1761843033778,-250.0,0.00052015,120]
[392709930,1761843033787,-500.0,0.00052054,7]
[392709931,1761843033796,-500.0,0.00052054,120]
[392709932,1761843033806,-500.0,0.00052054,120]
[392709933,1761843033816,-500.0,0.00052054,120]
[392709934,1761843033825,-481.74828472,0.00052054,120]
[392709935,1761843033835,-500.0,0.00052054,2]
[392709936,1761843033844,-500.0,0.00052054,120]
[392709937,1761843033853,-500.0,0.00052054,120]
[392709938,1761843033862,-500.0,0.00052054,120]
[392709939,1761843033872,-500.0,0.00052054,120]
[392709940,1761843033882,-500.0,0.00052054,120]
[392709941,1761843033891,-500.0,0.00052054,120]
[392709942,1761843033901,-500.0,0.00052054,120]
[392709943,1761843033911,-151.0,0.00052054,120]
[392709944,1761843033920,-500.0,0.00052054,120]
[392709945,1761843033929,-151.0,0.00052054,120]
[392709946,1761843033938,-583.25,0.00052054,120]
[392709947,1761843033947,-500.0,0.00052054,120]
[392709948,1761843033956,-500.0,0.00052054,120]
[392709949,1761843033965,-500.0,0.00052054,120]
[392709950,1761843033974,-507.62,0.00052054,120]
[392709951,1761843033983,-312.46,0.00052054,120]
[392709952,1761843033992,-500.0,0.00052054,120]
[392709953,1761843034001,-500.0,0.00052054,120]
[392709954,1761843034012,-500.0,0.00052054,120]
[392709955,1761843034024,-500.0,0.00052054,120]
[392709956,1761843034036,-590.42,0.00052054,120]
[392709957,1761843034047,-500.0,0.00052054,120]
[392709958,1761843034058,-500.0,0.00052054,120]
[392709959,1761843034070,-592.45,0.00052054,120]
[392709960,1761843034081,-195.952542,0.00052054,120]
[392709961,1761843034092,-195.952542,0.00052054,120]
[392709962,1761843034103,-195.952542,0.00052054,120]
[392709963,1761843034113,-195.952542,0.00052054,120]
[392709964,1761843034123,-500.0,0.00052054,120]
[392709965,1761843034133,-500.0,0.00052054,120]
[392709966,1761843034143,-500.0,0.00052054,120]
[392709967,1761843034156,-500.0,0.00052054,120]
[392709968,1761843034167,-151.0,0.00052054,120]
[392709969,1761843034178,-151.0,0.00052054,120]
[392709970,1761843034189,-500.0,0.00052054,120]
[392709971,1761843034199,-500.0,0.00052054,120]
[392709972,1761843034210,-500.0,0.00052054,120]
[392709973,1761843034221,-500.0,0.00052054,120]
[392709974,1761843034231,-500.0,0.00052054,120]
[392709975,1761843034242,-2431.133958,0.00052054,120]
[392709976,1761843034253,-500.0,0.00052054,120]
[392709977,1761843034266,-2431.133958,0.00052054,120]
[392709978,1761843034276,-2431.133958,0.00052054,120]
[392709979,1761843034287,-2431.133958,0.00052054,120]
[392709980,1761843034298,-500.0,0.00052054,120]
[392709981,1761843034311,-500.0,0.00052054,120]
[392709982,1761843034321,-500.0,0.00052054,120]
[392709983,1761843034334,-500.0,0.00052054,120]
[392709984,1761843034345,-151.0,0.00052054,120]
[392709985,1761843034356,-203.782376,0.00052054,120]
[392709986,1761843034367,-1028.88,0.00052054,120]
[392709987,1761843034377,-500.0,0.00052054,120]
[392709988,1761843034389,-500.0,0.00052054,120]
[392709989,1761843034401,-500.0,0.00052054,120]
[392709990,1761843034410,-525.58,0.00052054,120]
[392709991,1761843034420,-500.0,0.00052054,120]
[392709992,1761843034430,-566.03159222,0.00052054,120]
[392709993,1761843034440,-500.0,0.00052054,120]
[392709994,1761843034451,-300.00000003,0.00052054,120]
[392709995,1761843034461,-500.0,0.00052054,120]
[392709996,1761843034471,-500.0,0.00052054,120]
[392709997,1761843034481,-500.0,0.00052054,120]
[392709998,1761843034492,-500.0,0.00052054,120]
[392709999,1761843034502,-500.0,0.00052054,120]
[392710000,1761843034512,-151.0,0.00052054,120]
[392710001,1761843034522,-500.0,0.00052054,120]
[392710002,1761843034533,-500.0,0.00052054,120]
[392710003,1761843034543,-536.13,0.00052054,120]
[392710004,1761843034553,-500.0,0.00052054,120]
[392710005,1761843034564,-540.82,0.00052054,120]
[392710006,1761843034574,-500.0,0.00052054,120]
[392710007,1761843034584,-500.0,0.00052054,120]
[392710008,1761843034595,-539.18,0.00052054,120]
[392710009,1761843034605,-598.16,0.00052054,120]
[392710010,1761843034614,-500.0,0.00052054,120]
[392710011,1761843034624,-500.0,0.00052054,120]
[392710012,1761843034634,-500.0,0.00052054,120]
[392710013,1761843034643,-500.0,0.00052054,120]
[392710014,1761843034655,-500.0,0.00052054,120]
[392710015,1761843034665,-500.0,0.00052054,120]
[392710016,1761843034676,-500.0,0.00052054,120]
[392710017,1761843034686,-500.0,0.00052054,120]
[392710018,1761843034695,-5000.0,0.000522,120]
[392710019,1761843034706,-500.0,0.00052328,7]
[392710020,1761843034717,-284.01130091,0.00052328,120]
[392710021,1761843034728,-500.0,0.00052328,120]
[392710022,1761843034738,-500.0,0.00052328,2]
[392710023,1761843034749,-500.0,0.00052328,120]
[392710024,1761843034760,-250.8,0.00052328,120]
[392710025,1761843034770,-579.18,0.00052328,120]
[392710026,1761843034782,-151.0,0.00052328,120]
[392710027,1761843034792,-151.0,0.00052328,120]
[392710028,1761843034804,-583.25,0.00052328,120]
[392710029,1761843034814,-195.952542,0.00052328,120]
[392710030,1761843034824,-195.952542,0.00052328,120]
[392710031,1761843034835,-195.952542,0.00052328,120]
[392710032,1761843034846,-195.952542,0.00052328,120]
[392710033,1761843034856,-500.0,0.00052328,120]
[392710034,1761843034866,-500.0,0.00052328,120]
[392710035,1761843034877,-500.0,0.00052328,120]
[392710036,1761843034887,-151.0,0.00052328,120]
[392710037,1761843034897,-151.0,0.00052328,120]
[392710038,1761843034910,-500.0,0.00052328,120]
[392710039,1761843034920,-500.0,0.00052328,120]
[392710040,1761843034930,-500.0,0.00052328,120]
[392710041,1761843034940,-1028.88,0.00052328,120]
[392710042,1761843034949,-500.0,0.00052328,120]
[392710043,1761843034959,-500.0,0.00052328,120]
[392710044,1761843034969,-500.0,0.00052328,120]
[392710045,1761843034979,-500.0,0.00052328,120]
[392710046,1761843034989,-500.0,0.00052328,120]
[392710047,1761843034999,-500.0,0.00052328,120]
[392710048,1761843035010,-208.40166731,0.00052328,120]
[392710049,1761843035020,-500.0,0.00052328,120]
[392710050,1761843035031,-500.0,0.00052328,120]
[392710051,1761843035042,-500.0,0.00052328,120]
[392710052,1761843035054,-500.0,0.00052328,120]
[392710053,1761843035065,-500.0,0.00052328,120]
[392710054,1761843035075,-500.0,0.00052328,120]
[392710055,1761843035085,-500.0,0.00052328,120]
[392710056,1761843035095,-500.0,0.00052328,120]
[392710057,1761843035104,-500.0,0.00052328,120]
[392710058,1761843035114,-500.0,0.00052602,7]
[392710059,1761843035125,-500.0,0.00052602,120]
[392710060,1761843035134,-500.0,0.00052602,2]
[392710061,1761843035144,-188.74661187,0.00052602,120]
[392710062,1761843035157,-583.25,0.00052602,120]
[392710063,1761843035167,-166.11,0.00052602,120]
[392710064,1761843035177,-276.78,0.00052602,120]
[392710065,1761843035189,-500.0,0.00052602,120]
[392710066,1761843035199,-500.0,0.00052602,120]
[392710067,1761843035210,-500.0,0.00052602,120]
[392710068,1761843035220,-2431.133958,0.00052602,120]
[392710069,1761843035230,-2431.133958,0.00052602,120]
[392710070,1761843035241,-2431.133958,0.00052602,120]
[392710071,1761843035250,-2431.133958,0.00052602,120]
[392710072,1761843035262,-500.0,0.00052602,120]
[392710073,1761843035274,-151.0,0.00052602,120]
[392710074,1761843035284,-1028.88,0.00052602,120]
[392710075,1761843035294,-444.12884913,0.00052602,120]
[392710076,1761843035305,-500.0,0.00052602,120]
[392710077,1761843035315,-500.0,0.00052602,120]
[392710078,1761843035325,-500.0,0.00052602,120]
[392710079,1761843035335,-223.98935982,0.00052602,120]
[392710080,1761843035346,-500.0,0.00052602,120]
[392710081,1761843035473,-500.0,0.00052602,120]
[392710082,1761843035485,-500.0,0.00052602,120]
[392710083,1761843035494,-287.12,0.00052602,120]
[392710084,1761843035503,-257.51,0.00052602,120]
[392710085,1761843035513,-202.31905984,0.00052602,120]
[392710086,1761843035522,-500.0,0.00052602,120]
[392710087,1761843035532,-234.979282,0.00052632,2]
[392710088,1761843035541,-172.017186,0.0005264,2]
[392710089,1761843035551,-192.698384,0.0005264,2]
[392710090,1761843035559,-500.0,0.00052876,7]
[392710091,1761843035569,-500.0,0.00052876,120]
[392710092,1761843035578,-500.0,0.00052876,2]
[392710093,1761843035588,-583.25,0.00052876,120]
[392710094,1761843035597,-511.78056802,0.00052876,120]
[392710095,1761843035607,-500.0,0.00052876,120]
[392710096,1761843035616,-473.40971212,0.00052876,120]
[392710097,1761843035626,-500.0,0.00052876,120]
[392710098,1761843035635,-1028.88,0.00052876,120]
[392710099,1761843035645,-500.0,0.00052876,120]
[392710100,1761843035660,-500.0,0.00052876,120]
[392710101,1761843035670,-500.0,0.00052876,120]
[392710102,1761843035679,-500.0,0.00052876,120]
[392710103,1761843035689,-500.0,0.00052876,120]
[392710104,1761843035698,-500.0,0.00052876,120]
[392710105,1761843035708,-212.5,0.00052876,120]
[392710106,1761843035719,-1000.0,0.00053,120]
[392710107,1761843035729,-100000.00007349,0.00053,30]
[392710108,1761843035739,-151.0,0.00053,120]
[392710109,1761843035748,-181.059103,0.00053,120]
[392710110,1761843035758,-195.952542,0.00053,120]
[392710111,1761843035767,-195.952542,0.00053,120]
[392710112,1761843035777,-195.952542,0.00053,120]
[392710113,1761843035787,-195.952542,0.00053,120]
[392710114,1761843035797,-151.0,0.00053,120]
[392710115,1761843035808,-2431.133958,0.00053,120]
[392710116,1761843035818,-2431.133958,0.00053,120]
[392710117,1761843035827,-2431.133958,0.00053,120]
[392710118,1761843035837,-2431.133958,0.00053,120]
[392710119,1761843035847,-151.0,0.00053,120]
[392710120,1761843035859,-500.0,0.0005315,7]
[392710121,1761843035869,-500.0,0.0005315,120]
[392710122,1761843035878,-500.0,0.0005315,2]
[392710123,1761843035887,-583.25,0.0005315,120]
[392710124,1761843035896,-500.0,0.0005315,120]
[392710125,1761843035911,-500.0,0.0005315,120]
[392710126,1761843035920,-1028.88,0.0005315,120]
[392710127,1761843035930,-500.0,0.0005315,120]
[392710128,1761843035940,-500.0,0.0005315,120]
[392710129,1761843035950,-500.0,0.0005315,120]
[392710130,1761843035960,-500.0,0.0005315,120]
[392710131,1761843035969,-500.0,0.0005315,120]
[392710132,1761843035979,-5000.0,0.000532,120]
[392710133,1761843035989,-5000.0,0.000532,120]
[392710134,1761843035998,-10097.97,0.000532,120]
[392710135,1761843036008,-591.15,0.000532,14]
[392710136,1761843036017,-210.84,0.00053215,2]
[392710137,1761843036026,-500.0,0.00053424,7]
[392710138,1761843036036,-500.0,0.00053424,120]
[392710139,1761843036045,-500.0,0.00053424,2]
[392710140,1761843036054,-583.25,0.00053424,120]
[392710141,1761843036064,-500.0,0.00053424,120]
[392710142,1761843036074,-500.0,0.00053424,120]
[392710143,1761843036084,-1028.88,0.00053424,120]
[392710144,1761843036093,-500.0,0.00053424,120]
[392710145,1761843036103,-500.0,0.00053424,120]
[392710146,1761843036112,-500.0,0.00053424,120]
[392710147,1761843036122,-500.0,0.00053424,120]
[392710148,1761843036131,-500.0,0.00053424,120]
[392710149,1761843036141,-500.0,0.0005344,30]
[392710150,1761843036153,-875.4823905,0.000535,120]
[392710151,1761843036164,-1700.0,0.000535,120]
[392710152,1761843036173,-500.0,0.00053698,120]
[392710153,1761843036183,-500.0,0.00053698,2]
[392710154,1761843036192,-583.25,0.00053698,120]
[392710155,1761843036202,-500.0,0.00053698,120]
[392710156,1761843036211,-372.49593668,0.00053698,120]
[392710157,1761843036221,-1028.88,0.00053698,120]
[392710158,1761843036230,-500.0,0.00053698,120]
[392710159,1761843036239,-500.0,0.00053698,120]
[392710160,1761843036249,-500.0,0.00053698,120]
[392710161,1761843036258,-500.0,0.00053698,120]
[392710162,1761843036272,-500.0,0.00053698,120]
[392710163,1761843036281,-169.84201789,0.00053773,2]
[392710164,1761843036290,-116232.4188063,0.0005384,30]
[392710165,1761843036299,-151.0,0.0005384,120]
[392710166,1761843036309,-195.952542,0.0005384,120]
[392710167,1761843036318,-195.952542,0.0005384,120]
[392710168,1761843036329,-195.952542,0.0005384,120]
[392710169,1761843036340,-195.95255,0.0005384,120]
[392710170,1761843036350,-151.0,0.0005384,120]
[392710171,1761843036359,-2431.133958,0.0005384,120]
[392710172,1761843036369,-2431.133958,0.0005384,120]
[392710173,1761843036378,-2431.133958,0.0005384,120]
[392710174,1761843036388,-2431.13395,0.0005384,120]
[392710175,1761843036397,-151.0,0.0005384,120]
[392710176,1761843036410,-563041.05662652,0.00053845,120]
[392710177,1761843036448,-18754.84951248,0.00053845,120]
[392710178,1761843036458,-500.42673356,0.00053873,5]
[392710179,1761843036467,-335.28588195,0.00053873,10]
[392710180,1761843036476,-500.41177408,0.00053873,10]
[392710181,1761843036486,-500.0,0.00053873,10]
[392710182,1761843036495,-500.0,0.00053873,7]
[392710183,1761843036504,-500.2225988,0.00053873,10]
[392710184,1761843036515,-9974.01558982,0.0005388,120]
[392710185,1761843036525,-500.0,0.00053972,120]
[392710186,1761843036534,-500.0,0.00053972,2]
[392710187,1761843036543,-583.25,0.00053972,120]
[392710188,1761843036552,-500.0,0.00053972,120]
[392710189,1761843036561,-1028.88,0.00053972,120]
[392710190,1761843036570,-500.0,0.00053972,120]
[392710191,1761843036579,-500.0,0.00053972,120]
[392710192,1761843036588,-500.0,0.00053972,120]
[392710193,1761843036597,-500.0,0.00053972,120]
[392710194,1761843036607,-500.0,0.00053972,120]
[392710195,1761843036617,-680.77141539,0.00054,120]
[392710196,1761843036626,-1000.0,0.00054,120]
[392710197,1761843036635,-1713.28674474,0.00054,120]
[392710198,1761843036644,-4700.0,0.00054,120]
[392710199,1761843036655,-250.0,0.00054188,60]
[392710200,1761843036664,-520.90705816,0.00054188,60]
[392710201,1761843036673,-5000.0,0.000542,120]
[392710202,1761843036682,-500.0,0.00054246,120]
[392710203,1761843036691,-500.0,0.00054246,2]
[392710204,1761843036700,-583.25,0.00054246,120]
[392710205,1761843036709,-500.0,0.00054246,120]
[392710206,1761843036718,-1028.88,0.00054246,120]
[392710207,1761843036727,-500.0,0.00054246,120]
[392710208,1761843036736,-500.0,0.00054246,120]
[392710209,1761843036746,-500.0,0.00054246,120]
[392710210,1761843036755,-500.0,0.00054246,120]
[392710211,1761843036764,-500.0,0.00054246,120]
[392710212,1761843036773,-239.22608776,0.00054344,2]
[392710213,1761843036781,-150.0,0.00054362,30]
[392710214,1761843036791,-942.0,0.000544,120]
[392710215,1761843036799,-4846.95720668,0.000544,2]
[392710216,1761843036808,-500.0,0.00054421,10]
[392710217,1761843036817,-250.0,0.00054428,120]
[392710218,1761843036827,-192.62755413,0.00054428,120]
[392710219,1761843036836,-500.0,0.00054428,120]
[392710220,1761843036845,-1000.0,0.00054443,120]
[392710221,1761843036854,-153.81699132,0.00054443,30]
[392710222,1761843036863,-250.0,0.00054443,30]
[392710223,1761843036872,-250.0,0.00054443,120]
[392710224,1761843036881,-1000.0,0.00054443,30]
[392710225,1761843036890,-151.0,0.00054443,30]
[392710226,1761843036904,-1000.0,0.00054443,120]
[392710227,1761843036913,-500.0,0.00054443,30]
[392710228,1761843036923,-151.0,0.00054443,120]
[392710229,1761843036933,-213.99195881,0.00054443,30]
[392710230,1761843036942,-500.0,0.00054443,120]
[392710231,1761843036953,-309883.52844646,0.00054444,30]
[392710232,1761843036964,-921.96033283,0.00054444,30]
[392710233,1761843036975,-3400.28001881,0.00054444,30]
[392710234,1761843036986,-1480.000025,0.00054444,30]
[392710241,1761843038310,-412.0,0.00040105,2]
[392710243,1761843038319,-129.19957396,0.00043105,2]
[392710286,1761843040518,-10031.33631149,0.0003669,2]
[392710321,1761843043462,-675.14,0.0003669,2]
[392710332,1761843046672,-56385.86721636,0.0003669,2]
[392710333,1761843046683,-3569.63487616,0.0003669,2]
[392710334,1761843046694,-875.07290591,0.0003669,2]
[392710335,1761843817852,169.05907,0.00015481,2]
[392710393,1761844232498,-150.0,0.00025265,2]
[392710395,1761844232508,-158.27514324,0.00025347,2]
[392710397,1761844232517,-191.72485676,0.00025447,2]
[392710399,1761844232603,-203.89272608,0.00025447,2]
[392710400,1761844232616,-200.0,0.00025547,2]
[392710401,1761844232628,-216.85479555,0.00027265,2]
[392710402,1761844232637,-158.27514322,0.00028355,2]
[392710403,1761844232646,-223.57109333,0.00029804,2]
[392710404,1761844232659,-200.0,0.00031075,15]
[392710405,1761844232668,-158.27514322,0.00031363,2]
[392710406,1761844232677,-223.57109333,0.00032137,3]
[392710407,1761844232687,-158.27514322,0.00034371,2]
[392710409,1761844232696,-2417.04555502,0.00034471,2]
[392710411,1761844232705,-223.57109333,0.00034471,4]
[392710413,1761844232715,-301.0,0.00035998,2]
[392710414,1761844232725,-377.53851498,0.00035999,3]
[392710423,1761844237146,7705.0,0.00025206,2]
[392710435,1761844238464,-478.0,0.00035999,3]
[392710447,1761844238572,-344.46148502,0.00035999,3]
[392710449,1761844238581,-499.99578187,0.00036,15]
[392710450,1761844238591,-479.95253039,0.00036115,7]
[392710529,1761844240841,-378.1999,0.00036115,7]
[392710530,1761844240924,-3428.69713818,0.00036115,7]
[392710531,1761844240936,-500.0,0.00036115,7]
[392710539,1761844243614,-344.8474044,0.00036115,7]
[392710540,1761844243628,-2409.99762283,0.00036115,7]
[392710598,1761844246607,-7379.41174361,0.00036115,7]
[392710599,1761844246623,-356.32752106,0.00036115,7]
[392710600,1761844246794,-2943.24450196,0.00036115,7]
[392710601,1761844757656,281924.99,0.00025,2]
[392710602,1761844907353,200.0,0.00036122,60]
[392710603,1761844957924,200.0,0.00036122,120]
[392710612,1761845000318,600.0,0.00036122,120]
[392710622,1761845135818,250.055249,0.00013699,2]
[392710623,1761845136007,250.055249,0.00020187,2]
[392710625,1761845188428,300.0,0.000202,2]
[392710626,1761845200524,300.0,0.000202,2]
[392710627,1761845212392,300.0,0.000202,2]
[392710628,1761845225001,300.0,0.000202,2]
[392710629,1761845244547,300.0,0.000202,2]
[392710631,1761845284714,421.42548802,0.00010618,2]
[392710632,1761845286467,6007.28983034,0.000125,2]
[392710635,1761845304226,20000.02,0.00017,2]
[392710637,1761845308219,589.54231696,0.000149,2]
[392710638,1761845308458,1000.0,0.0001,2]
[392710640,1761845308669,409615.39627702,0.00036114,120]
[392710644,1761845315760,400664.26913471,0.00036114,60]
[392710645,1761845316177,261.49564483,0.00021,2]
[392710665,1761845431920,-500.0,0.000253,2]
[392710666,1761845431933,-250.055249,0.00026676,2]
[392710667,1761845431943,-378.88756166,0.00029054,2]
[392710668,1761845431952,-223.90628238,0.00029804,2]
[392710669,1761845431962,-150.07494603,0.00031114,2]
[392710670,1761845431972,-220.1025356,0.0003212,60]
[392710671,1761845431981,-250.055249,0.00033165,2]
[392710672,1761845431992,-83.64517633,0.00035031,2]
[392710673,1761845432003,-858.12873,0.00035031,2]
[392710674,1761845432015,-474.08125622,0.00035031,2]
[392710700,1761845437685,-150.0,0.00025252,2]
[392710702,1761845437695,-167.54771405,0.00027252,2]
[392710704,1761845437704,-222.84919055,0.00035031,2]
[392710706,1761845437713,-193.46375872,0.00035654,2]
[392710710,1761845437737,-106.53624128,0.00035654,2]